bitfinex/quotes_SOLUSD_20240818
["timestamp","ask_amount","ask_price","bid_price","bid_amount"]
[1724018605717,21.0718,145.84,145.77,20.0]
[1724018605921,21.0718,145.84,145.78,45.0]
[1724018606233,21.0718,145.84,145.79,20.0]
[1724018606421,21.0718,145.84,145.8,45.0]
[1724018606838,21.0718,145.84,145.8,67.26]
[1724018607128,21.0718,145.84,145.81,20.0]
[1724018607528,21.0718,145.84,145.82,45.0]
[1724018608612,0.8770602,145.86,145.82,45.0]
[1724018609544,0.8770602,145.86,145.83,20.0]
[1724018610714,0.8770602,145.86,145.84,67.26]
[1724018611340,23.70107377,145.93,145.85,20.0]
[1724018611341,22.7237,145.93,145.85,20.0]
[1724018611542,22.7237,145.93,145.87,22.26]
[1724018611826,22.7237,145.93,145.88,65.0]
[1724018612541,22.7237,145.93,145.88,20.0]
[1724018612747,22.7237,145.93,145.86,20.0]
[1724018612925,22.7237,145.93,145.87,45.0]
[1724018616143,22.7237,145.93,145.89,22.26]
[1724018617027,22.5993,145.97,145.91,22.26]
[1724018617225,22.5993,145.97,145.92,65.0]
[1724018617445,22.5993,145.97,145.92,20.0]
[1724018617816,22.5993,145.97,145.9,20.0]
[1724018618021,22.5993,145.97,145.91,45.0]
[1724018620421,22.5993,145.97,145.92,22.26]
[1724018620621,22.5993,145.97,145.93,45.0]
[1724018621745,22.5993,145.97,145.92,22.26]
[1724018621935,22.5993,145.97,145.9,42.26]
[1724018622139,22.5993,145.97,145.91,45.0]
[1724018622443,22.5993,145.97,145.9,42.26]
[1724018623639,22.5993,145.97,145.91,45.0]
[1724018624330,22.5993,145.97,145.88,22.26]
[1724018624530,22.5993,145.97,145.86,37.3335]
[1724018624737,20.0,145.96,145.86,37.3335]
[1724018624943,26.8516,145.96,145.86,37.3335]
[1724018625249,6.8516,145.96,145.86,22.26]
[1724018626049,6.8516,145.96,145.87,20.0]
[1724018626221,6.8516,145.96,145.88,45.0]
[1724018626422,6.8516,145.96,145.82,16.6539]
[1724018626423,44.312,145.96,145.82,16.6539]
[1724018626639,20.0,145.95,145.84,22.26]
[1724018627147,6.8522,145.94,145.84,22.26]
[1724018627350,20.0,145.95,145.86,22.26]
[1724018627528,26.8517,145.95,145.86,22.26]
[1724018627726,20.0,145.95,145.87,45.0]
[1724018627927,28.9032,145.96,145.87,45.0]
[1724018628145,28.9032,145.96,145.88,20.0]
[1724018628451,22.052,145.96,145.89,45.0]
[1724018628829,28.9032,145.96,145.89,45.0]
[1724018629040,28.9032,145.96,145.88,20.0]
[1724018629240,28.9032,145.96,145.87,20.0]
[1724018629572,28.9032,145.96,145.88,45.0]
[1724018629739,6.8517,145.95,145.88,45.0]
[1724018630442,15.5873,145.95,145.87,20.0]
[1724018630655,6.8526,145.93,145.85,20.0]
[1724018630865,6.4647,145.9,145.82,22.26]
[1724018631161,15.5873,145.89,145.82,22.26]
[1724018632663,15.5873,145.89,145.83,45.0]
[1724018633262,15.5873,145.89,145.84,42.26]
[1724018633448,15.5873,145.89,145.85,45.0]
[1724018635865,15.5873,145.89,145.84,20.0]
[1724018636063,15.5873,145.89,145.79,16.6539]
[1724018636064,15.5873,145.89,145.81,22.26]
[1724018636263,15.5873,145.89,145.82,20.0]
[1724018636566,15.5873,145.89,145.83,22.26]
[1724018637080,15.5873,145.89,145.82,20.0]
[1724018637271,15.5873,145.89,145.83,45.0]
[1724018637762,15.5873,145.89,145.83,67.26]
[1724018641769,15.5873,145.89,145.83,45.0]
[1724018642186,15.5873,145.89,145.83,67.26]
[1724018643292,15.5873,145.89,145.83,22.26]
[1724018643660,15.5873,145.89,145.82,20.0]
[1724018644899,15.5873,145.89,145.83,45.0]
[1724018645374,15.5873,145.89,145.83,67.26]
[1724018646299,15.5873,145.89,145.84,20.0]
[1724018646603,15.5873,145.89,145.85,45.0]
[1724018647190,15.5873,145.89,145.87,22.26]
[1724018647397,15.5873,145.89,145.85,67.26]
[1724018647580,15.5873,145.89,145.85,45.0]
[1724018648274,14.5873,145.89,145.85,45.0]
[1724018649077,14.5873,145.89,145.85,67.26]
[1724018649292,14.5873,145.89,145.86,20.0]
[1724018649700,14.5873,145.89,145.83,22.26]
[1724018650007,14.5873,145.89,145.81,22.26]
[1724018650203,14.5873,145.89,145.77,6.3475]
[1724018650204,14.5873,145.89,145.83,22.26]
[1724018650385,14.5873,145.89,145.84,20.0]
[1724018651206,14.5873,145.89,145.81,22.26]
[1724018651509,14.5873,145.89,145.82,20.0]
[1724018652489,14.5873,145.89,145.81,22.26]
[1724018652689,21.4418,145.89,145.79,22.26]
[1724018652907,14.5873,145.89,145.81,22.26]
[1724018653608,21.4418,145.89,145.79,22.26]
[1724018653805,21.4418,145.89,145.8,45.0]
[1724018653994,21.4418,145.89,145.81,20.0]
[1724018654180,16.4619,145.85,145.77,22.26]
[1724018654383,16.4619,145.85,145.74,22.26]
[1724018654588,16.4816,145.82,145.69,6.3182]
[1724018654794,16.4816,145.82,145.73,22.26]
[1724018655006,23.3394,145.82,145.73,22.26]
[1724018655208,22.26,145.79,145.68,7.17703609]
[1724018655416,6.8601,145.77,145.66,22.26]
[1724018655787,15.5842,145.75,145.66,22.26]
[1724018656478,15.0842,145.75,145.66,22.26]
[1724018657288,21.9454,145.75,145.66,22.26]
[1724018657487,6.5815,145.74,145.66,22.26]
[1724018658312,6.5815,145.74,145.64,22.26]
[1724018658691,13.4431,145.74,145.64,22.26]
[1724018659298,20.0,145.73,145.64,22.26]
[1724018659627,26.862,145.73,145.64,22.26]
[1724018659816,26.862,145.73,145.65,20.0]
[1724018659991,26.862,145.73,145.66,45.0]
[1724018660310,20.0,145.73,145.62,22.26]
[1724018660512,6.863,145.71,145.6,22.26]
[1724018660693,6.1874,145.7,145.62,22.26]
[1724018661794,6.1874,145.7,145.63,45.0]
[1724018664792,6.8639,145.69,145.6,22.26]
[1724018665101,6.1874,145.7,145.6,22.26]
[1724018665102,22.4983,145.68,145.6,22.26]
[1724018665306,22.4983,145.68,145.58,22.26]
[1724018665494,22.4983,145.68,145.59,20.0]
[1724018665694,6.6123,145.66,145.56,22.26]
[1724018666211,6.6123,145.66,145.6,22.26]
[1724018667215,6.6123,145.66,145.61,45.0]
[1724018667915,6.6123,145.66,145.53,23.63332941]
[1724018668113,6.6123,145.66,145.58,22.26]
[1724018668415,6.6123,145.66,145.59,20.0]
[1724018668608,6.6123,145.66,145.6,22.26]
[1724018669298,6.6123,145.66,145.61,45.0]
[1724018669705,6.6123,145.66,145.62,22.26]
[1724018669904,15.6338,145.68,145.64,22.26]
[1724018671226,15.6338,145.68,145.61,45.0]
[1724018671397,15.6338,145.68,145.62,20.0]
[1724018671722,15.6338,145.68,145.6,45.0]
[1724018671893,15.6338,145.68,145.61,22.26]
[1724018672096,15.6338,145.68,145.62,45.0]
[1724018673624,15.6338,145.68,145.59,22.26]
[1724018673802,15.6338,145.68,145.6,20.0]
[1724018675219,15.6338,145.68,145.61,45.0]
[1724018678731,15.6338,145.68,145.57,22.26]
[1724018678907,26.8651,145.67,145.58,45.0]
[1724018679226,20.0,145.67,145.58,45.0]
[1724018680707,13.0084,145.66,145.57,22.26]
[1724018680935,15.3353,145.65,145.57,22.26]
[1724018681225,15.3353,145.65,145.55,22.26]
[1724018681730,15.3353,145.62,145.53,22.26]
[1724018682426,22.2025,145.62,145.53,22.26]
[1724018682729,22.2025,145.62,145.51,22.26]
[1724018682730,6.1428,145.6,145.51,22.26]
[1724018682907,15.3353,145.59,145.51,22.26]
[1724018684008,15.3353,145.59,145.52,45.0]
[1724018684203,15.3353,145.59,145.53,22.26]
[1724018684402,15.3353,145.59,145.52,45.0]
[1724018684403,15.3353,145.59,145.55,22.26]
[1724018684810,15.3353,145.59,145.56,45.0]
[1724018685710,21.4781,145.64,145.57,42.26]
[1724018685918,21.4781,145.64,145.59,22.26]
[1724018689834,21.4781,145.64,145.63,22.26]
[1724018690043,21.5579,145.69,145.63,67.26]
[1724018690212,21.5579,145.69,145.64,45.0]
[1724018690729,21.5579,145.69,145.65,23.63300895]
[1724018691234,21.5579,145.69,145.65,22.26]
[1724018691737,21.5579,145.69,145.64,45.0]
[1724018692107,21.5579,145.69,145.61,22.26]
[1724018692411,21.5579,145.69,145.62,65.0]
[1724018692611,21.5579,145.69,145.52,16.0751]
[1724018692916,21.5579,145.69,145.58,22.26]
[1724018692917,6.8647,145.68,145.58,22.26]
[1724018693115,6.8647,145.68,145.53,22.26]
[1724018693116,21.5579,145.69,145.6,22.26]
[1724018693321,21.5579,145.69,145.62,22.26]
[1724018693516,21.5579,145.69,145.64,22.26]
[1724018694332,21.5579,145.69,145.65,45.0]
[1724018694909,21.5579,145.69,145.64,22.26]
[1724018696018,21.5579,145.69,145.5,7.183504]
[1724018696019,21.5579,145.69,145.62,22.26]
[1724018696213,21.5579,145.69,145.63,20.0]
[1724018697427,21.5579,145.69,145.64,45.0]
[1724018697732,21.5579,145.69,145.66,22.26]
[1724018699812,21.5579,145.69,145.64,67.26]
[1724018700034,21.5579,145.69,145.65,20.0]
[1724018700234,21.5579,145.69,145.66,45.0]
[1724018700425,21.5579,145.69,145.65,20.0]
[1724018700637,21.5579,145.69,145.62,22.26]
[1724018700840,21.5579,145.69,145.63,65.0]
[1724018702012,21.5579,145.69,145.64,22.26]
[1724018702214,21.5579,145.69,145.65,45.0]
[1724018702620,21.5579,145.69,145.63,20.0]
[1724018702941,21.5579,145.69,145.64,45.0]
[1724018704346,21.5579,145.69,145.61,22.26]
[1724018704652,21.5579,145.69,145.62,20.0]
[1724018705344,21.5579,145.69,145.61,22.26]
[1724018706350,28.4218,145.69,145.61,22.26]
[1724018706528,6.8644,145.68,145.59,22.26]
[1724018707038,22.6928,145.66,145.57,22.26]
[1724018708315,22.6928,145.66,145.61,22.26]
[1724018708513,22.6928,145.66,145.59,22.26]
[1724018708745,22.6928,145.66,145.61,22.26]
[1724018709044,22.6928,145.66,145.6,65.0]
[1724018709338,22.6928,145.66,145.57,22.26]
[1724018709944,22.6928,145.66,145.59,22.26]
[1724018712152,22.6928,145.66,145.52,7.18397405]
[1724018712344,22.6928,145.66,145.55,22.26]
[1724018712345,26.8658,145.65,145.55,22.26]
[1724018712854,6.8667,145.63,145.53,22.26]
[1724018713227,29.5785,145.64,145.53,22.26]
[1724018713446,22.7122,145.64,145.55,22.26]
[1724018714052,22.7122,145.64,145.5,16.5064]
[1724018714053,22.7122,145.64,145.57,22.26]
[1724018714236,22.7122,145.64,145.58,45.0]
[1724018714437,22.7122,145.64,145.57,22.26]
[1724018714958,29.5786,145.64,145.55,22.26]
[1724018715133,22.7122,145.64,145.56,21.37371545]
[1724018715341,22.7122,145.64,145.57,22.26]
[1724018715759,22.7122,145.64,145.55,22.26]
[1724018716156,15.1651,145.62,145.53,22.26]
[1724018716341,20.0,145.61,145.51,22.26]
[1724018717760,6.1647,145.6,145.52,20.0]
[1724018717961,15.8265,145.59,145.52,20.0]
[1724018718745,15.8265,145.59,145.49,23.1370602]
[1724018718951,26.1076,145.58,145.49,23.1370602]
[1724018720231,26.1076,145.58,145.5,45.0]
[1724018720958,6.1076,145.58,145.51,22.26]
[1724018721155,6.1076,145.58,145.53,22.26]
[1724018729547,6.1076,145.58,145.55,22.26]
[1724018729746,6.1076,145.58,145.57,22.26]
[1724018729955,264.2661,145.65,145.57,22.26]
[1724018729956,21.6032,145.62,145.57,22.26]
[1724018730158,21.6032,145.62,145.59,22.26]
[1724018730369,21.6032,145.62,145.6,1.37339318]
[1724018730774,21.6032,145.62,145.59,22.26]
[1724018731660,21.6032,145.62,145.55,22.26]
[1724018731855,21.6032,145.62,145.56,20.0]
[1724018734780,21.6032,145.62,145.55,22.26]
[1724018736257,21.6032,145.62,145.57,22.26]
[1724018736466,21.6032,145.62,145.59,22.26]
[1724018737469,21.6032,145.62,145.57,22.26]
[1724018737789,21.6032,145.62,145.56,45.0]
[1724018744493,21.6032,145.62,145.57,22.26]
[1724018745582,21.6032,145.62,145.59,22.26]
[1724018746895,21.6032,145.62,145.57,22.26]
[1724018750102,21.6032,145.62,145.56,45.0]
[1724018753069,21.6032,145.62,145.57,1.37375791]
[1724018755572,21.6032,145.62,145.56,45.0]
[1724018755772,21.6032,145.62,145.57,22.26]
[1724018758394,21.6032,145.62,145.57,23.63353477]
[1724018758597,21.6032,145.62,145.58,1.37353477]
[1724018760581,21.6032,145.62,145.57,22.26]
[1724018761373,286.84589954,145.7,145.61,22.26]
[1724018761374,15.3014,145.65,145.61,22.26]
[1724018761598,15.3014,145.65,145.62,1.37324357]
[1724018762083,15.3014,145.65,145.62,21.37324357]
[1724018762596,6.342,145.66,145.63,22.26]
[1724018762901,15.628,145.68,145.65,22.26]
[1724018763209,15.628,145.68,145.65,23.63290758]
[1724018764081,15.628,145.68,145.66,20.0]
[1724018764282,263.7873,145.7,145.67,23.63279956]
[1724018764504,6.3873,145.7,145.67,23.63279956]
[1724018764885,6.3873,145.7,145.66,20.0]
[1724018765514,6.3873,145.7,145.63,22.26]
[1724018765808,6.3873,145.7,145.61,22.26]
[1724018766007,6.3873,145.7,145.62,20.0]
[1724018769301,6.3873,145.7,145.65,22.26]
[1724018769888,6.3873,145.7,145.67,22.26]
[1724018770106,6.3873,145.7,145.65,22.26]
[1724018770282,6.3873,145.7,145.63,22.26]
[1724018770680,6.3873,145.7,145.64,20.0]
[1724018771087,13.2511,145.7,145.61,22.26]
[1724018771293,15.8871,145.69,145.59,22.26]
[1724018772217,22.0905,145.67,145.57,22.26]
[1724018772783,28.9553,145.67,145.57,22.26]
[1724018773401,28.9553,145.67,145.58,1.37353016]
[1724018773602,22.0905,145.67,145.57,22.26]
[1724018774107,22.0905,145.67,145.58,20.0]
[1724018774607,22.0905,145.67,145.59,23.63352268]
[1724018774801,22.0905,145.67,145.59,22.26]
[1724018779021,28.9554,145.67,145.58,20.0]
[1724018779313,28.9554,145.67,145.56,45.0]
[1724018779314,6.5336,145.63,145.56,45.0]
[1724018781200,6.5336,145.63,145.57,22.26]
[1724018781405,6.5336,145.63,145.58,1.37352653]
[1724018781723,6.5336,145.63,145.57,22.26]
[1724018787225,6.5336,145.63,145.57,23.63369865]
[1724018788530,6.5336,145.63,145.56,45.0]
[1724018788737,6.5513,145.61,145.56,45.0]
[1724018788921,15.5888,145.6,145.56,45.0]
[1724018790136,22.4569,145.6,145.56,45.0]
[1724018793721,15.5888,145.6,145.56,45.0]
[1724018795747,22.457,145.6,145.56,45.0]
[1724018796846,6.8686,145.59,145.56,45.0]
[1724018797026,6.0217,145.59,145.56,45.0]
[1724018797222,16.4188,145.57,145.56,45.0]
[1724018811232,6.0217,145.59,145.56,45.0]
[1724018813239,15.4104,145.61,145.56,45.0]
[1724018813442,20.0,145.6,145.56,45.0]
[1724018814341,15.4104,145.61,145.56,45.0]
[1724018814560,15.4104,145.61,145.56,53.9]
[1724018814787,15.4104,145.61,145.56,45.0]
[1724018815063,22.278,145.61,145.56,45.0]
[1724018815432,15.4104,145.61,145.56,45.0]
[1724018817459,31.1782,145.61,145.56,45.0]
[1724018817660,26.8681,145.6,145.56,45.0]
[1724018820175,20.0,145.6,145.56,45.0]
[1724018820657,15.4104,145.61,145.56,45.0]
[1724018821562,22.278,145.61,145.56,45.0]
[1724018823477,6.869,145.58,145.56,45.0]
[1724018823681,6.8687,145.59,145.56,45.0]
[1724018824376,15.4104,145.61,145.56,45.0]
[1724018824578,28.839,145.62,145.56,45.0]
[1724018824579,6.599,145.62,145.56,45.0]
[1724018827678,6.8667,145.63,145.56,45.0]
[1724018827881,20.0,145.62,145.56,45.0]
[1724018829177,21.4395,145.65,145.57,23.61379624]
[1724018829384,21.4395,145.65,145.56,45.0]
[1724018829385,6.8652,145.67,145.59,37.4974]
[1724018829817,6.8652,145.67,145.6,1.3735004]
[1724018830258,22.5921,145.7,145.61,23.61337494]
[1724018830458,6.869,145.59,145.56,45.0]
[1724018830684,29.56650031,145.6,145.56,45.0]
[1724018830990,6.8684,145.6,145.56,45.0]
[1724018831359,6.8688,145.59,145.56,45.0]
[1724018831687,20.0,145.58,145.56,45.0]
[1724018832992,26.8691,145.58,145.56,45.0]
[1724018837382,6.8695,145.57,145.56,45.0]
[1724018837568,26.8695,145.57,145.56,45.0]
[1724018840278,20.0,145.57,145.56,45.0]
[1724018843071,26.8695,145.57,145.56,45.0]
[1724018846497,26.8695,145.57,145.47,15.9978]
[1724018846498,6.872,145.52,145.47,15.9978]
[1724018846721,20.0,145.51,145.47,15.9978]
[1724018847404,26.8724,145.51,145.43,21.278]
[1724018848287,20.0,145.51,145.43,21.278]
[1724018848989,6.8728,145.5,145.43,21.278]
[1724018849187,26.8728,145.5,145.43,21.278]
[1724018854003,26.8728,145.5,145.43,15.2304]
[1724018854004,49.1128,145.5,145.43,15.2304]
[1724018854178,49.1128,145.5,145.39,6.0995]
[1724018854179,49.1128,145.5,145.39,21.3002]
[1724018854583,64.4376,145.5,145.39,21.3002]
[1724018855004,6.8748,145.46,145.39,21.3002]
[1724018856900,6.8758,145.44,145.39,15.2007]
[1724018857614,6.8753,145.45,145.39,15.2007]
[1724018858693,20.0,145.44,145.36,15.2419]
[1724018858899,26.8758,145.44,145.36,15.2419]
[1724018859296,20.0,145.44,145.36,15.2419]
[1724018859510,6.8761,145.43,145.36,15.2419]
[1724018859838,6.8761,145.43,145.34,0.8770602]
[1724018859839,26.8766,145.42,145.34,0.8770602]
[1724018866023,20.0,145.42,145.34,0.8770602]
[1724018866330,26.8766,145.42,145.34,0.8770602]
[1724018866514,26.8766,145.42,145.34,9.7970602]
[1724018876010,20.0,145.42,145.34,9.7970602]
[1724018877422,20.0,145.42,145.34,0.8770602]
[1724018877607,20.0,145.42,145.35,8.92]
[1724018881317,26.8768,145.42,145.35,8.92]
[1724018882015,6.0632,145.46,145.39,8.92]
[1724018882452,12.9382,145.46,145.39,8.92]
[1724018883040,6.0632,145.46,145.4,1.37529822]
[1724018883233,6.0632,145.46,145.39,8.92]
[1724018884629,6.0632,145.46,145.41,8.92]
[1724018884827,15.9346,145.47,145.43,8.92]
[1724018885225,15.9346,145.47,145.41,8.92]
[1724018885539,15.9346,145.47,145.39,8.92]
[1724018886239,8.92,145.44,145.34,0.8770602]
[1724018886441,15.2711,145.44,145.34,29.7970602]
[1724018887629,22.1468,145.44,145.35,45.0]
[1724018887828,15.2711,145.44,145.35,45.0]
[1724018890745,15.2711,145.44,145.36,8.92]
[1724018892149,16.2119,145.36,145.34,0.8770602]
[1724018894046,23.0915,145.36,145.34,0.8770602]
[1724018894550,20.0,145.35,145.34,0.8770602]
[1724018894743,35.7999,145.35,145.34,0.8770602]
[1724018895064,35.7999,145.35,145.33,10.0]
[1724018895065,6.8804,145.34,145.33,10.0]
[1724018895255,6.1117,145.3,145.2,23.24168179]
[1724018895545,12.994,145.3,145.21,8.92]
[1724018896236,6.8828,145.29,145.21,8.92]
[1724018896837,6.8836,145.28,145.21,8.92]
[1724018897151,6.8837,145.27,145.21,8.92]
[1724018897657,6.1117,145.3,145.23,8.92]
[1724018897658,6.8833,145.28,145.23,8.92]
[1724018898229,6.8838,145.27,145.23,8.92]
[1724018898441,6.8838,145.27,145.21,22.34]
[1724018899337,6.1117,145.3,145.21,22.34]
[1724018899653,6.1117,145.3,145.2,0.8770602]
[1724018899654,6.8847,145.25,145.2,0.8770602]
[1724018899879,17.2088,145.28,145.2,0.8770602]
[1724018900153,20.0,145.27,145.2,0.8770602]
[1724018900354,6.8856,145.23,145.2,0.8770602]
[1724018900732,6.8852,145.24,145.2,0.8770602]
[1724018901961,6.8847,145.25,145.2,0.8770602]
[1724018902752,6.8851,145.24,145.2,0.8770602]
[1724018904350,6.8847,145.25,145.2,0.8770602]
[1724018905450,6.8842,145.26,145.2,0.8770602]
[1724018906073,6.8846,145.25,145.2,0.8770602]
[1724018907283,15.9649,145.29,145.2,23.2170602]
[1724018907580,6.8837,145.27,145.21,45.0]
[1724018908077,6.8833,145.28,145.21,45.0]
[1724018909454,6.8833,145.28,145.22,1.37682868]
[1724018909650,6.1117,145.3,145.22,20.0]
[1724018909854,6.8821,145.31,145.23,22.34]
[1724018910083,6.8821,145.31,145.23,67.34]
[1724018910253,6.8821,145.31,145.24,45.0]
[1724018910652,412.94,145.37,145.27,22.34]
[1724018910653,17.1981,145.37,145.27,22.34]
[1724018910853,17.1981,145.37,145.28,1.37627886]
[1724018911170,6.0498,145.38,145.27,22.34]
[1724018911171,6.88,145.35,145.27,22.34]
[1724018911359,6.88,145.35,145.28,45.0]
[1724018911559,6.8794,145.37,145.29,23.71620665]
[1724018911750,12.9284,145.38,145.29,22.34]
[1724018913083,20.0,145.37,145.29,22.34]
[1724018913261,6.88,145.35,145.29,22.34]
[1724018913580,6.8795,145.36,145.28,45.0]
[1724018914677,26.879,145.37,145.28,45.0]
[1724018914866,26.879,145.37,145.29,22.34]
[1724018915679,15.0064,145.39,145.31,22.34]
[1724018915680,6.8781,145.39,145.31,22.34]
[1724018915881,6.8785,145.38,145.31,22.34]
[1724018916180,6.8781,145.39,145.31,22.34]
[1724018918683,6.8777,145.4,145.32,1.37593507]
[1724018918868,20.0,145.39,145.33,1.37584132]
[1724018920975,20.0,145.39,145.31,22.34]
[1724018921164,20.0,145.39,145.3,45.0]
[1724018921384,20.0,145.39,145.31,22.34]
[1724018922892,26.8782,145.39,145.3,45.0]
[1724018924389,26.8781,145.39,145.3,45.0]
[1724018924762,20.0,145.39,145.3,45.0]
[1724018925258,26.8781,145.39,145.3,45.0]
[1724018927181,6.8793,145.37,145.27,28.7682]
[1724018927415,6.8793,145.37,145.28,20.0]
[1724018928398,6.8793,145.37,145.29,45.0]
[1724018928768,6.8793,145.37,145.28,20.0]
[1724018929763,6.8793,145.37,145.29,67.34]
[1724018930685,20.0,145.36,145.29,67.34]
[1724018931674,20.0,145.36,145.27,28.7682]
[1724018931675,26.8795,145.36,145.27,28.7682]
[1724018931869,26.8795,145.36,145.28,45.0]
[1724018932473,26.8795,145.36,145.29,8.93]
[1724018932792,6.8807,145.34,145.26,16.3421]
[1724018933713,20.0,145.33,145.24,8.93]
[1724018933870,20.0,145.33,145.23,15.9342]
[1724018933871,6.8825,145.3,145.23,15.9342]
[1724018934208,6.8825,145.3,145.22,8.93]
[1724018934603,6.8825,145.3,145.2,39.1512602]
[1724018935274,6.8825,145.3,145.21,45.0]
[1724018936091,6.8825,145.3,145.22,20.0]
[1724018936290,6.8819,145.31,145.23,45.0]
[1724018936493,6.8814,145.32,145.23,45.0]
[1724018936697,20.0,145.31,145.23,45.0]
[1724018937205,26.8818,145.31,145.23,45.0]
[1724018937389,20.0,145.31,145.23,45.0]
[1724018939510,6.8808,145.34,145.24,22.34]
[1724018939707,6.88,145.35,145.26,22.34]
[1724018940008,6.8814,145.32,145.22,22.34]
[1724018940171,6.8814,145.32,145.23,65.0]
[1724018941972,6.881,145.33,145.24,22.34]
[1724018942275,20.0,145.32,145.24,22.34]
[1724018942475,20.0,145.32,145.25,45.0]
[1724018943403,6.8803,145.35,145.26,22.34]
[1724018944095,6.8804,145.34,145.26,22.34]
[1724018944485,6.8804,145.34,145.26,23.71638378]
[1724018944702,6.88,145.35,145.26,22.34]
[1724018944893,22.6445,145.36,145.28,22.34]
[1724018945102,22.6445,145.36,145.3,22.34]
[1724018945309,15.6519,145.4,145.32,22.34]
[1724018945488,22.1496,145.4,145.32,22.34]
[1724018945677,22.1496,145.4,145.34,22.34]
[1724018945904,22.1496,145.4,145.35,1.37574393]
[1724018946700,22.1496,145.4,145.34,22.34]
[1724018947702,22.1496,145.4,145.35,1.37574614]
[1724018948084,6.4977,145.4,145.34,22.34]
[1724018948279,6.4977,145.4,145.34,23.71567808]
[1724018948691,15.5772,145.44,145.36,22.34]
[1724018948902,15.5772,145.44,145.38,22.34]
[1724018949079,15.5772,145.44,145.39,1.37527235]
[1724018949397,15.5772,145.44,145.38,22.34]
[1724018950005,6.0069,145.45,145.38,22.34]
[1724018950311,6.0069,145.45,145.39,45.0]
[1724018952482,6.0069,145.45,145.36,22.34]
[1724018952680,6.0069,145.45,145.37,65.0]
[1724018954111,6.0069,145.45,145.35,15.2044]
[1724018954409,20.0,145.44,145.34,22.34]
[1724018955211,26.8757,145.44,145.34,22.34]
[1724018955703,26.8757,145.44,145.35,20.0]
[1724018958197,6.8762,145.43,145.35,20.0]
[1724018958707,6.8762,145.43,145.34,22.34]
[1724018958906,26.8757,145.44,145.34,22.34]
[1724018960421,20.0,145.44,145.36,22.34]
[1724018960609,20.0,145.44,145.37,1.37541413]
[1724018960921,6.0069,145.45,145.38,23.71534245]
[1724018961313,6.0069,145.45,145.39,45.0]
[1724018961721,6.0069,145.45,145.4,1.37516844]
[1724018962299,6.0069,145.45,145.4,23.71516844]
[1724018962507,7.22308677,145.51,145.41,45.0]
[1724018962508,6.3706,145.49,145.41,45.0]
[1724018962723,6.3706,145.49,145.44,22.34]
[1724018962899,6.3706,145.49,145.45,1.37479629]
[1724018963229,6.3706,145.49,145.44,22.34]
[1724018964312,6.3706,145.49,145.45,1.37474505]
[1724018964537,6.3706,145.49,145.44,22.34]